bitfinex-derivatives/quotes_BNBF0:USTF0_20250609
["timestamp","ask_amount","ask_price","bid_price","bid_amount"]
[1749491587106,1.09930975,659.31,658.42,0.26407449]
[1749491587307,1.09930975,659.3,658.42,0.26407449]
[1749491587509,1.09930975,659.29,658.42,0.26407449]
[1749491587710,1.09930975,659.28,658.42,0.26407449]
[1749491587910,1.09930975,659.27,658.42,0.26407449]
[1749491588109,1.09930975,659.26,658.42,0.26407449]
[1749491588311,1.09930975,659.38,658.42,0.26407449]
[1749491588610,1.09930975,659.37,658.42,0.26407449]
[1749491588908,1.09930975,659.36,658.42,0.26407449]
[1749491589108,1.09930975,659.35,658.42,0.26407449]
[1749491589313,1.09930975,659.34,658.42,0.26407449]
[1749491589610,1.09930975,659.33,658.42,0.26407449]
[1749491589808,1.09930975,659.32,658.42,0.26407449]
[1749491590012,1.09930975,659.31,658.42,0.26407449]
[1749491590309,1.09930975,659.3,658.42,0.26407449]
[1749491590710,1.09930975,659.29,658.42,0.26407449]
[1749491590907,1.09930975,659.28,658.42,0.26407449]
[1749491591109,1.09930975,659.27,658.42,0.26407449]
[1749491591307,1.09930975,659.38,658.42,0.26407449]
[1749491591608,1.09930975,659.37,658.42,0.26407449]
[1749491591809,1.09930975,659.36,658.42,0.26407449]
[1749491592009,1.09930975,659.35,658.42,0.26407449]
[1749491592212,1.09930975,659.34,658.42,0.26407449]
[1749491592412,1.09930975,659.33,658.42,0.26407449]
[1749491592609,1.09930975,659.32,658.42,0.26407449]
[1749491592812,1.228,659.39,658.42,0.26407449]
[1749491592813,1.09930975,659.31,658.42,0.26407449]
[1749491593007,1.228,659.39,658.42,0.26407449]
[1749491593008,1.09930975,659.3,658.42,0.26407449]
[1749491593207,1.09930975,659.29,658.42,0.26407449]
[1749491593413,1.09930975,659.38,658.42,0.26407449]
[1749491593709,1.09930975,659.37,658.51,3.77304657]
[1749491594012,1.09930975,659.36,658.51,3.77304657]
[1749491594212,1.09930975,659.35,658.51,3.77304657]
[1749491594409,1.09930975,659.34,658.51,3.77304657]
[1749491594612,1.09930975,659.33,658.51,3.77304657]
[1749491594813,1.09930975,659.32,658.51,3.77304657]
[1749491595014,1.09930975,659.31,658.51,3.77304657]
[1749491595211,1.09930975,659.3,658.51,3.77304657]
[1749491595414,3.85901211,659.4,658.51,3.77304657]
[1749491595611,2.71097593,659.39,658.52,3.77304657]
[1749491595813,1.13521935,659.47,658.52,3.77304657]
[1749491595814,1.09930975,659.38,658.52,3.77304657]
[1749491596011,1.09930975,659.37,658.51,3.77304657]
[1749491596208,1.09930975,659.36,658.51,3.77304657]
[1749491596411,1.09930975,659.35,658.42,0.26407449]
[1749491596717,1.09930975,659.34,658.42,0.26407449]
[1749491597011,1.09930975,659.33,658.42,0.26407449]
[1749491597215,1.09930975,659.32,658.42,0.26407449]
[1749491597413,1.09930975,659.31,658.42,0.26407449]
[1749491597712,1.09930975,659.3,658.42,0.26407449]
[1749491597911,1.09930975,659.29,658.42,0.26407449]
[1749491598116,1.09930975,659.28,658.42,0.26407449]
[1749491598414,1.09930975,659.27,658.42,0.26407449]
[1749491598616,1.09930975,659.26,658.42,0.26407449]
[1749491598814,1.09930975,659.33,658.42,0.26407449]
[1749491599012,1.09930975,659.32,658.42,0.26407449]
[1749491599219,1.09930975,659.31,658.42,0.26407449]
[1749491599513,1.09930975,659.3,658.42,0.26407449]
[1749491599713,1.09930975,659.29,658.42,0.26407449]
[1749491599914,1.09930975,659.28,658.42,0.26407449]
[1749491600113,1.09930975,659.27,658.42,0.26407449]
[1749491600316,1.09930975,659.26,658.42,0.26407449]
[1749491600515,1.09930975,659.33,658.42,0.26407449]
[1749491600718,1.09930975,659.32,658.42,0.26407449]
[1749491601017,1.09930975,659.31,658.42,0.26407449]
[1749491601217,1.09930975,659.3,658.42,0.26407449]
[1749491601417,1.09930975,659.29,658.42,0.26407449]
[1749491601618,1.09930975,659.28,658.42,0.26407449]
[1749491601818,1.09930975,659.33,658.42,0.26407449]
[1749491602118,1.226,659.34,658.42,0.26407449]
[1749491605120,1.09930975,659.33,658.42,0.26407449]
[1749491605320,1.226,659.34,658.42,0.26407449]
[1749491605321,1.09930975,659.32,658.42,0.26407449]
[1749491605620,1.09930975,659.33,658.42,0.26407449]
[1749491605817,1.09930975,659.32,658.42,0.26407449]
[1749491606119,1.09930975,659.33,658.42,0.26407449]
[1749491608024,1.226,659.34,658.42,0.26407449]
[1749491610328,1.09930975,659.33,658.42,0.26407449]
[1749491610527,1.09930975,659.32,658.42,0.26407449]
[1749491610729,1.09930975,659.33,658.42,0.26407449]
[1749491610926,1.09930975,659.32,658.42,0.26407449]
[1749491611126,1.09930975,659.33,658.42,0.26407449]
[1749491611824,1.09930975,659.32,658.42,0.26407449]
[1749491612026,1.09930975,659.31,658.42,0.26407449]
[1749491612223,1.09930975,659.3,658.42,0.26407449]
[1749491612429,1.09930975,659.29,658.42,0.26407449]
[1749491612726,1.09930975,659.28,658.42,0.26407449]
[1749491612929,1.09930975,659.27,658.42,0.26407449]
[1749491613127,1.09930975,659.26,658.42,0.26407449]
[1749491613326,1.09930975,659.33,658.42,0.26407449]
[1749491613530,1.09930975,659.32,658.42,0.26407449]
[1749491613726,1.09930975,659.31,658.42,0.26407449]
[1749491614026,1.09930975,659.3,658.42,0.26407449]
[1749491614228,1.09930975,659.29,658.42,0.26407449]
[1749491614530,1.09930975,659.28,658.42,0.26407449]
[1749491614731,1.09930975,659.27,658.42,0.26407449]
[1749491615027,1.09930975,659.26,658.42,0.26407449]
[1749491615232,1.09930975,659.25,658.42,0.26407449]
[1749491615432,1.09930975,659.24,658.42,0.26407449]
[1749491615629,1.09930975,659.23,658.42,0.26407449]
[1749491615929,1.09930975,659.22,658.42,0.26407449]
[1749491616129,1.09930975,659.21,658.42,0.26407449]
[1749491616431,1.09930975,659.2,658.42,0.26407449]
[1749491616630,1.09930975,659.19,658.42,0.26407449]
[1749491616828,1.09930975,659.18,658.42,0.26407449]
[1749491617129,2.13130975,659.17,658.42,0.26407449]
[1749491617330,1.09930975,659.16,658.42,0.26407449]
[1749491617832,1.032,659.17,658.42,0.26407449]
[1749491621934,1.09930975,659.16,658.42,0.26407449]
[1749491622935,1.032,659.17,658.42,0.26407449]
[1749491629340,1.09930975,659.27,658.42,0.26407449]
[1749491629639,1.09930975,659.26,658.42,0.26407449]
[1749491629841,1.09930975,659.25,658.42,0.26407449]
[1749491630035,1.09930975,659.24,658.42,0.26407449]
[1749491630338,3.85035788,659.49,658.42,0.26407449]
[1749491630534,3.85035788,659.48,658.42,0.26407449]
[1749491630739,3.85035788,659.47,658.42,0.26407449]
[1749491630936,3.84579559,659.46,658.42,0.26407449]
[1749491631139,3.84579559,659.45,658.42,0.26407449]
[1749491631339,2.70174073,659.44,658.42,0.26407449]
[1749491631540,1.1313752,659.5,658.42,0.26407449]
[1749491631541,3.84493635,659.43,658.42,0.26407449]
[1749491631738,1.09474746,659.42,658.42,0.26407449]
[1749491631944,1.09474746,659.41,658.42,0.26407449]
[1749491632139,1.0947192,659.4,658.42,0.26407449]
[1749491632340,1.0947192,659.39,658.42,0.26407449]
[1749491632538,1.0947192,659.38,658.42,0.26407449]
[1749491632744,1.0947192,659.37,658.42,0.26407449]
[1749491632940,1.0947192,659.36,658.42,0.26407449]
[1749491633142,0.26409453,659.15,658.42,0.26407449]
[1749491638146,0.26409453,659.15,658.27,0.30382669]
[1749491638554,0.26409453,659.15,658.34,0.26411658]
[1749491638952,0.26409453,659.15,658.27,0.30382669]
[1749491639150,1.0947192,659.14,658.27,0.30382669]
[1749491639348,1.0947192,659.13,658.27,0.30382669]
[1749491639549,1.0947192,659.14,658.27,0.30382669]
[1749491639952,1.0947192,659.13,658.27,0.30382669]
[1749491640154,1.0947192,659.14,658.27,0.30382669]
[1749491640453,1.0947192,659.13,658.27,0.30382669]
[1749491640650,1.0947192,659.14,658.27,0.30382669]
[1749491640854,1.0947192,659.13,658.27,0.30382669]
[1749491641053,1.0947192,659.14,658.27,0.30382669]
[1749491641250,1.0947192,659.13,658.27,0.30382669]
[1749491641450,1.0947192,659.14,658.27,0.30382669]
[1749491641750,0.26409453,659.15,658.27,0.30382669]
[1749491650657,0.26409453,659.15,658.1,0.26417171]
[1749491659161,2.95590995,659.15,658.1,0.26417171]
[1749491659461,2.69149354,659.14,658.1,0.26417171]
[1749491659764,1.59677434,659.13,658.1,0.26417171]
[1749491659960,1.59679132,659.13,658.1,0.26417171]
[1749491660161,1.0947192,659.14,658.1,0.26417171]
[1749491660461,0.26409453,659.15,658.1,0.26417171]
[1749491661866,1.35881373,659.15,658.1,0.26417171]
[1749491662167,0.26409453,659.15,658.1,0.26417171]
[1749491662767,1.35881373,659.15,658.1,0.26417171]
[1749491662964,0.26409453,659.15,658.1,0.26417171]
[1749491663168,1.35881373,659.15,658.1,0.26417171]
[1749491663364,0.26409453,659.15,658.1,0.26417171]
[1749491663865,1.35881373,659.15,658.1,0.26417171]
[1749491664062,0.26409453,659.15,658.1,0.26417171]
[1749491664265,1.88697383,659.15,658.1,0.26417171]
[1749491664462,1.0947192,659.14,658.1,0.26417171]
[1749491664664,0.26409453,659.15,658.1,0.26417171]
[1749491666574,1.35881373,659.15,658.1,0.26417171]
[1749491666768,0.26409453,659.15,658.1,0.26417171]
[1749491667869,4.09593721,659.15,658.1,0.26417171]
[1749491668169,2.23310281,659.14,658.1,0.26417171]
[1749491668370,1.62300013,659.13,658.1,0.26417171]
[1749491668569,1.0947192,659.14,658.1,0.26417171]
[1749491668869,0.26409453,659.15,658.1,0.26417171]
[1749491669073,1.0947192,659.14,658.1,0.26417171]
[1749491669270,0.26409453,659.15,658.1,0.26417171]
[1749491669873,4.09449691,659.15,658.1,0.26417171]
[1749491670074,3.83034704,659.14,658.1,0.26417171]
[1749491670375,3.3020702,659.13,658.1,0.26417171]
[1749491670668,1.62297975,659.12,658.1,0.26417171]
[1749491670871,1.0947192,659.14,658.1,0.26417171]
[1749491671074,1.0947192,659.13,658.1,0.26417171]
[1749491671275,1.0947192,659.14,658.1,0.26417171]
[1749491671472,1.0947192,659.13,658.1,0.26417171]
[1749491671673,3.83037364,659.14,658.1,0.26417171]
[1749491671872,3.83037364,659.13,658.1,0.26417171]
[1749491672073,2.6922389,659.12,658.1,0.26417171]
[1749491672275,2.16393593,659.11,658.1,0.26417171]
[1749491672476,2.16393593,659.1,658.1,0.26417171]
[1749491672676,1.0947192,659.09,658.1,0.26417171]
[1749491672975,1.0947192,659.14,658.1,0.26417171]
[1749491673174,1.0947192,659.13,658.1,0.26417171]
[1749491673375,1.0947192,659.14,658.1,0.26417171]
[1749491673672,1.0947192,659.13,658.1,0.26417171]
[1749491673876,1.0947192,659.14,658.1,0.26417171]
[1749491674175,1.0947192,659.13,658.1,0.26417171]
[1749491674375,1.0947192,659.14,658.1,0.26417171]
[1749491674573,1.0947192,659.13,658.1,0.26417171]
[1749491674770,1.0947192,659.12,658.1,0.26417171]
[1749491674972,0.26409453,659.15,658.1,0.26417171]
[1749491674973,1.0947192,659.14,658.1,0.26417171]
[1749491675172,0.26409453,659.15,658.1,0.26417171]
[1749491675173,1.0947192,659.13,658.1,0.26417171]
[1749491675371,1.0947192,659.12,658.1,0.26417171]
[1749491675575,1.0947192,659.14,658.1,0.26417171]
[1749491675772,1.0947192,659.13,658.1,0.26417171]
[1749491675973,1.0947192,659.12,658.1,0.26417171]
[1749491676176,1.0947192,659.14,658.1,0.26417171]
[1749491676472,1.0947192,659.13,658.1,0.26417171]
[1749491676675,1.0947192,659.12,658.1,0.26417171]
[1749491676875,2.69527913,659.12,658.1,0.26417171]
[1749491677178,2.69525954,659.11,658.1,0.26417171]
[1749491677378,2.16683424,659.1,658.1,0.26417171]
[1749491677576,1.0947192,659.09,658.1,0.26417171]
[1749491677775,1.0947192,659.14,658.1,0.26417171]
[1749491677975,1.0947192,659.13,658.1,0.26417171]
[1749491678176,1.0947192,659.12,658.1,0.26417171]
[1749491678376,1.0947192,659.14,658.1,0.26417171]
[1749491678579,1.0947192,659.13,658.1,0.26417171]
[1749491678879,1.0947192,659.12,658.1,0.26417171]
[1749491679077,1.0947192,659.14,658.1,0.26417171]
[1749491679276,1.0947192,659.13,658.1,0.26417171]
[1749491679481,1.0947192,659.12,658.1,0.26417171]
[1749491679681,1.0947192,659.14,658.1,0.26417171]
[1749491679877,1.0947192,659.13,658.1,0.26417171]
[1749491680179,1.0947192,659.12,658.1,0.26417171]
[1749491680378,1.62356764,659.13,658.1,0.26417171]
[1749491680577,0.26409453,659.15,658.1,0.26417171]
[1749491680578,1.0947192,659.12,658.1,0.26417171]
[1749491680780,1.0947192,659.14,658.1,0.26417171]
[1749491680978,1.0947192,659.13,658.1,0.26417171]
[1749491681181,1.0947192,659.14,658.1,0.26417171]
[1749491681377,1.0947192,659.13,658.1,0.26417171]
[1749491681578,1.0947192,659.14,658.1,0.26417171]
[1749491681783,1.0947192,659.13,658.1,0.26417171]
[1749491681982,1.0947192,659.12,658.1,0.26417171]
[1749491682183,1.0947192,659.14,658.1,0.26417171]
[1749491682480,0.26409453,659.15,658.1,0.26417171]
[1749491682481,1.0947192,659.13,658.1,0.26417171]
[1749491682678,1.0947192,659.14,658.1,0.26417171]
[1749491682882,1.0947192,659.13,658.1,0.26417171]
[1749491683083,1.0947192,659.12,658.1,0.26417171]
[1749491683382,1.0947192,659.11,658.1,0.26417171]
[1749491683577,1.0947192,659.1,658.1,0.26417171]
[1749491683782,1.0947192,659.14,658.1,0.26417171]
[1749491683979,1.0947192,659.13,658.1,0.26417171]
[1749491684283,1.0947192,659.12,658.1,0.26417171]
[1749491684583,1.0947192,659.11,658.1,0.26417171]
[1749491684783,1.0947192,659.14,658.1,0.26417171]
[1749491684984,1.0947192,659.13,658.1,0.26417171]
[1749491685284,1.0947192,659.12,658.1,0.26417171]
[1749491685583,1.0947192,659.11,658.1,0.26417171]
[1749491685784,3.84059999,659.14,658.1,0.26417171]
[1749491686083,2.76741764,659.13,658.1,0.26417171]
[1749491686279,2.76766413,659.12,658.1,0.26417171]
[1749491686480,2.1687846,659.11,658.1,0.26417171]
[1749491686780,2.16878461,659.1,658.1,0.26417171]
[1749491687083,0.26409453,659.15,658.1,0.26417171]
[1749491687084,2.16878461,659.09,658.1,0.26417171]
[1749491687281,1.0947192,659.08,658.1,0.26417171]
[1749491687484,1.0947192,659.14,658.1,0.26417171]
[1749491687683,1.0947192,659.13,658.1,0.26417171]
[1749491687883,1.0947192,659.12,658.1,0.26417171]
[1749491688184,1.0947192,659.11,658.1,0.26417171]
[1749491688481,1.0947192,659.1,658.1,0.26417171]
[1749491688680,1.0947192,659.09,658.1,0.26417171]
[1749491688981,0.26409453,659.15,658.1,0.26417171]
[1749491688982,1.0947192,659.14,658.1,0.26417171]
[1749491689183,1.0947192,659.13,658.1,0.26417171]
[1749491689381,1.0947192,659.12,658.1,0.26417171]
[1749491689579,1.0947192,659.11,658.1,0.26417171]
[1749491689784,1.0947192,659.1,658.1,0.26417171]
[1749491689984,1.0947192,659.09,658.1,0.26417171]
[1749491690182,1.0947192,659.08,658.1,0.26417171]
[1749491690484,1.0947192,659.07,658.1,0.26417171]
[1749491690684,3.8430615,659.14,658.1,0.26417171]
[1749491690880,3.8430615,659.13,658.1,0.26417171]
[1749491691082,3.8430615,659.12,658.1,0.26417171]
[1749491691283,3.8430615,659.11,658.1,0.26417171]
[1749491691585,2.23911176,659.1,658.1,0.26417171]
[1749491691884,2.69989788,659.09,658.1,0.26417171]
[1749491692184,0.26409453,659.15,658.1,0.26417171]
[1749491692185,2.17001378,659.08,658.1,0.26417171]
[1749491692385,2.17001378,659.07,658.1,0.26417171]
[1749491692584,1.0947192,659.06,658.1,0.26417171]
[1749491692785,1.0947192,659.05,658.1,0.26417171]
[1749491692983,1.0947192,659.14,658.1,0.26417171]
[1749491693181,0.26409453,659.15,658.1,0.26417171]
[1749491693182,1.0947192,659.13,658.1,0.26417171]
[1749491693385,1.0947192,659.12,658.1,0.26417171]
[1749491693688,1.0947192,659.11,658.1,0.26417171]
[1749491693981,1.0947192,659.1,658.1,0.26417171]
[1749491694186,1.0947192,659.09,658.1,0.26417171]
[1749491694383,1.0947192,659.08,658.1,0.26417171]
[1749491694682,1.0947192,659.07,658.1,0.26417171]
[1749491694985,1.0947192,659.06,658.1,0.26417171]
[1749491695187,1.0947192,659.05,658.1,0.26417171]
[1749491695382,1.0947192,659.04,658.1,0.26417171]
[1749491695582,1.0947192,659.03,658.1,0.26417171]
[1749491695782,1.012,659.1,658.1,0.26417171]
[1749491695783,1.0947192,659.02,658.1,0.26417171]
[1749491695987,1.0947192,659.03,658.1,0.26417171]
[1749491696288,1.0947192,659.02,658.1,0.26417171]
[1749491696489,2.24140343,659.08,658.1,0.26417171]
[1749491696788,3.84873052,659.07,658.1,0.26417171]
[1749491696988,1.0947192,659.06,658.1,0.26417171]
[1749491697288,1.0947192,659.09,658.1,0.26417171]
[1749491697488,1.0947192,659.08,658.1,0.26417171]
[1749491697684,1.0947192,659.07,658.1,0.26417171]
[1749491697988,1.0947192,659.09,658.1,0.26417171]
[1749491698183,1.0947192,659.08,658.1,0.26417171]
[1749491698388,1.0947192,659.07,658.1,0.26417171]
[1749491698590,1.0947192,659.06,658.1,0.26417171]
[1749491698888,1.0947192,659.09,658.1,0.26417171]
[1749491699088,1.0947192,659.08,658.1,0.26417171]
[1749491699285,1.0947192,659.07,658.1,0.26417171]
[1749491699585,1.0947192,659.06,658.1,0.26417171]
[1749491699784,1.0947192,659.09,658.1,0.26417171]
[1749491700084,1.0947192,659.08,658.1,0.26417171]
[1749491700285,1.0947192,659.07,658.1,0.26417171]
[1749491700485,1.0947192,659.06,658.1,0.26417171]
[1749491700684,1.0947192,659.09,658.1,0.26417171]
[1749491700889,1.0947192,659.08,658.1,0.26417171]
[1749491701185,1.0947192,659.07,658.1,0.26417171]
[1749491701390,1.0947192,659.06,658.1,0.26417171]
[1749491701591,1.0947192,659.09,658.1,0.26417171]
[1749491701790,1.0947192,659.08,658.1,0.26417171]
[1749491701988,1.0947192,659.07,658.1,0.26417171]
[1749491702187,1.0947192,659.09,658.1,0.26417171]
[1749491702387,1.0947192,659.08,658.1,0.26417171]
[1749491702691,1.0947192,659.07,658.1,0.26417171]
[1749491702991,1.0947192,659.06,658.1,0.26417171]
[1749491703192,1.0947192,659.09,658.1,0.26417171]
[1749491703487,1.0947192,659.08,658.1,0.26417171]
[1749491703687,1.0947192,659.07,658.1,0.26417171]
[1749491703891,1.0947192,659.06,658.1,0.26417171]
[1749491704084,1.0947192,659.09,658.1,0.26417171]
[1749491704292,1.0947192,659.08,658.1,0.26417171]
[1749491704490,1.0947192,659.07,658.1,0.26417171]
[1749491704688,1.0947192,659.06,658.1,0.26417171]
[1749491704991,1.012,659.1,658.1,0.26417171]
[1749491704992,1.0947192,659.09,658.1,0.26417171]
[1749491705193,1.0947192,659.08,658.1,0.26417171]
[1749491705494,1.0947192,659.07,658.1,0.26417171]
[1749491705694,1.0947192,659.06,658.1,0.26417171]
[1749491705994,1.0947192,659.05,658.1,0.26417171]
[1749491706291,1.0947192,659.09,658.1,0.26417171]
[1749491706491,1.0947192,659.08,658.1,0.26417171]
[1749491706689,1.0947192,659.07,658.1,0.26417171]
[1749491706893,1.0947192,659.06,658.1,0.26417171]
[1749491707194,1.0947192,659.09,658.1,0.26417171]
[1749491707395,1.0947192,659.08,658.1,0.26417171]
[1749491707596,1.0947192,659.07,658.1,0.26417171]
[1749491707792,1.0947192,659.09,658.1,0.26417171]
[1749491707990,1.0947192,659.08,658.1,0.26417171]
[1749491708294,1.0947192,659.09,658.1,0.26417171]
[1749491708794,1.0947192,659.08,658.1,0.26417171]
[1749491708992,1.0947192,659.09,658.1,0.26417171]
[1749491709291,1.0947192,659.08,658.1,0.26417171]
[1749491709695,1.0947192,659.09,658.1,0.26417171]
[1749491711295,1.012,659.1,658.1,0.26417171]
[1749491712296,2.1067192,659.1,658.1,0.26417171]
[1749491712496,1.0947192,659.09,658.1,0.26417171]
[1749491712996,1.012,659.1,658.1,0.26417171]
[1749491713799,2.1067192,659.1,658.1,0.26417171]
[1749491713998,1.09825216,659.09,658.1,0.26417171]
[1749491714395,1.012,659.1,658.1,0.26417171]
[1749491715296,2.11025216,659.1,658.1,0.26417171]
[1749491715598,1.09825216,659.09,658.1,0.26417171]
[1749491715998,1.012,659.1,658.1,0.26417171]
[1749491716701,1.09825216,659.09,658.1,0.26417171]
[1749491717400,1.012,659.1,658.1,0.26417171]
[1749491718304,2.11025216,659.1,658.1,0.26417171]
[1749491718605,1.09825216,659.09,658.1,0.26417171]
[1749491719002,1.012,659.1,658.1,0.26417171]
[1749491719805,2.11025216,659.1,658.1,0.26417171]
[1749491720003,1.09825216,659.09,658.1,0.26417171]
[1749491720602,1.012,659.1,658.1,0.26417171]
[1749491721502,2.11025216,659.1,658.1,0.26417171]
[1749491721705,1.09825216,659.09,658.1,0.26417171]
[1749491721906,1.012,659.1,658.1,0.26417171]
[1749491722804,2.11025216,659.1,658.1,0.26417171]
[1749491723004,1.09825216,659.09,658.1,0.26417171]
[1749491723404,1.012,659.1,658.1,0.26417171]
[1749491732722,2.10918489,659.1,658.1,0.26417171]
[1749491733022,1.09718489,659.09,658.1,0.26417171]
[1749491733222,1.012,659.1,658.1,0.26417171]
[1749491739028,2.10918489,659.1,658.1,0.26417171]
[1749491739227,1.09718489,659.09,658.1,0.26417171]
[1749491739725,1.012,659.1,658.1,0.26417171]
[1749491740626,2.10918489,659.1,658.1,0.26417171]
[1749491740929,1.09718489,659.09,658.1,0.26417171]
[1749491742125,1.012,659.1,658.1,0.26417171]
[1749491743127,2.64102784,659.1,658.1,0.26417171]
[1749491743333,1.09718489,659.09,658.1,0.26417171]
[1749491744332,1.012,659.1,658.1,0.26417171]
[1749491744629,1.09718489,659.09,658.1,0.26417171]
[1749491746432,0.26409453,659.15,658.1,0.26417171]
[1749491746433,1.09718489,659.14,658.1,0.26417171]
[1749491746737,1.09718489,659.13,658.1,0.26417171]
[1749491747037,1.09718489,659.12,658.1,0.26417171]
[1749491747234,1.09718489,659.11,658.1,0.26417171]
[1749491747434,0.26409453,659.15,658.1,0.26417171]
[1749491747435,1.09718489,659.1,658.1,0.26417171]
[1749491747738,0.26409453,659.15,658.1,0.26417171]
[1749491747739,1.09718489,659.09,658.1,0.26417171]
[1749491748038,1.09718489,659.08,658.1,0.26417171]
[1749491748236,1.09718489,659.07,658.1,0.26417171]
[1749491748535,1.09718489,659.14,658.1,0.26417171]
[1749491748737,1.09718489,659.13,658.1,0.26417171]
[1749491748938,1.09718489,659.12,658.1,0.26417171]
[1749491749134,1.09718489,659.11,658.1,0.26417171]
[1749491749337,1.09718489,659.14,658.1,0.26417171]
[1749491749537,1.09718489,659.13,658.1,0.26417171]
[1749491749739,1.09718489,659.12,658.1,0.26417171]
[1749491749936,1.09718489,659.11,658.1,0.26417171]
[1749491750241,1.09718489,659.12,658.1,0.26417171]
[1749491750541,1.487,659.13,658.1,0.26417171]
[1749491750838,2.58418489,659.13,658.1,0.26417171]
[1749491751035,1.09718489,659.12,658.1,0.26417171]
[1749491751235,1.487,659.13,658.1,0.26417171]
[1749491751640,2.58418489,659.13,658.1,0.26417171]
[1749491751941,1.09718489,659.12,658.11,0.30390056]
[1749491752637,1.09718489,659.11,658.11,0.30390056]
[1749491752940,1.487,659.13,658.11,0.30390056]
[1749491752941,1.09718489,659.12,658.11,0.30390056]
[1749491753237,1.09718489,659.11,658.11,0.30390056]
[1749491753435,1.09718489,659.1,658.11,0.30390056]
[1749491753640,1.09718489,659.12,658.11,0.30390056]
[1749491753840,1.09718489,659.11,658.11,0.30390056]
[1749491754038,1.09718489,659.1,658.11,0.30390056]
[1749491754240,1.09718489,659.12,658.11,0.30390056]
[1749491754435,1.09718489,659.11,658.11,0.30390056]
[1749491754645,1.09718489,659.1,658.11,0.30390056]
[1749491754841,1.09718489,659.09,658.11,0.30390056]
[1749491755043,1.09718489,659.12,658.11,0.30390056]
[1749491755238,1.09718489,659.11,658.11,0.30390056]
[1749491755439,1.09718489,659.1,658.11,0.30390056]
[1749491755639,1.09718489,659.09,658.11,0.30390056]
[1749491755939,1.09718489,659.12,658.11,0.30390056]
[1749491756143,1.09718489,659.11,658.11,0.30390056]
[1749491756345,1.09718489,659.1,658.11,0.30390056]
[1749491756544,1.09718489,659.09,658.11,0.30390056]
[1749491756743,1.09718489,659.08,658.11,0.30390056]
[1749491756943,1.09718489,659.07,658.11,0.30390056]
[1749491757143,1.09718489,659.12,658.11,0.30390056]
[1749491757441,1.09718489,659.11,658.11,0.30390056]
[1749491757642,1.09718489,659.1,658.11,0.30390056]
[1749491757841,1.09718489,659.09,658.11,0.30390056]
[1749491758044,1.487,659.13,658.11,0.30390056]
[1749491758045,1.09718489,659.08,658.11,0.30390056]
[1749491758246,1.09718489,659.12,658.11,0.30390056]
[1749491758445,1.09718489,659.11,658.11,0.30390056]
[1749491758642,1.09718489,659.1,658.11,0.30390056]
[1749491758842,1.09718489,659.12,658.11,0.30390056]
[1749491759145,1.487,659.13,658.11,0.30390056]
[1749491759146,1.09718489,659.11,658.11,0.30390056]
[1749491759346,1.09718489,659.1,658.16,3.77304657]
[1749491759544,1.09718489,659.12,658.16,3.77304657]
[1749491759747,1.09718489,659.11,658.16,3.77304657]
[1749491759948,1.09718489,659.12,658.16,3.77304657]
[1749491760145,1.09718489,659.11,658.16,3.77304657]
[1749491760349,1.09718489,659.12,658.18,3.77304657]
[1749491760549,1.09718489,659.11,658.18,3.77304657]
[1749491760747,1.09718489,659.12,658.18,3.77304657]
[1749491761049,1.09718489,659.11,658.18,3.77304657]
[1749491761346,1.09718489,659.12,658.19,3.77304657]
[1749491761545,1.09718489,659.11,658.19,3.77304657]
[1749491761746,1.09718489,659.12,658.19,3.77304657]
[1749491761950,1.09718489,659.11,658.11,0.30390056]
[1749491762151,1.09718489,659.12,658.11,0.30390056]
[1749491762550,1.09718489,659.12,658.12,3.77304657]
[1749491762751,1.487,659.13,658.12,3.77304657]
[1749491764752,1.487,659.13,658.11,0.30390056]
[1749491766256,2.58418489,659.13,658.11,0.30390056]
[1749491766457,1.09718489,659.12,658.11,0.30390056]
[1749491767055,1.487,659.13,658.11,0.30390056]
[1749491771458,2.58418489,659.13,658.11,0.30390056]
[1749491771656,1.09718489,659.12,658.11,0.30390056]
[1749491772256,1.09718489,659.11,658.11,0.30390056]
[1749491772561,1.09718489,659.1,658.11,0.30390056]
[1749491772759,1.09718489,659.09,658.11,0.30390056]
[1749491772959,1.09718489,659.12,658.11,0.30390056]
[1749491773159,1.09718489,659.11,658.11,0.30390056]
[1749491773460,1.09718489,659.1,658.11,0.30390056]
[1749491773658,1.09718489,659.09,658.11,0.30390056]
[1749491773857,1.09718489,659.12,658.11,0.30390056]
[1749491774057,1.09718489,659.11,658.11,0.30390056]
[1749491774261,1.09718489,659.12,658.11,0.30390056]
[1749491774557,1.09718489,659.11,658.14,3.77304657]
[1749491774760,1.09718489,659.12,658.14,3.77304657]
[1749491774961,1.09718489,659.11,658.14,3.77304657]
[1749491775157,1.09718489,659.12,658.14,3.77304657]
[1749491775461,1.09718489,659.11,658.14,3.77304657]
[1749491775657,1.09718489,659.12,658.14,3.77304657]
[1749491775859,1.09718489,659.11,658.14,3.77304657]
[1749491776060,1.09718489,659.12,658.14,3.77304657]
[1749491776356,0.2641667,658.97,658.16,0.2641667]
[1749491793771,0.2641667,658.97,658.16,4.03721327]
[1749491794277,0.2641667,658.97,658.16,0.2641667]
[1749491796177,1.553,658.96,658.16,0.2641667]
[1749491796977,1.553,658.96,658.16,4.03721327]
[1749491797479,1.553,658.96,658.16,0.2641667]